Cogmind - Beta 15 @@@ ROGUE MODE // 2025.05.09 @ 19:17:26 Player: ochotona_princeps Result: Destroyed by S-43 Plague with Heavy Machine Gun Performance ------------- Evolutions (8) 4000 Regions Visited (19) 3800 Robots Destroyed (153) 765 Value Destroyed (5404) 5404 Prototype IDs (37) 740 Alien Tech Used (2) 400 Bonus (5067) 5067 TOTAL SCORE: 20176 Bonus ------- High Alert Combat Kills 419 Follower Combat Kills 2900 Entered Garrisons 200 Used RIF Installer 500 Registered with UFD 300 Met Optimus in HQ 500 Met Zhirov 300 Friendly Fire -52 Cogmind --------- Core Integrity 0/1450 Matter 300/300 Energy 100/100 System Corruption 11% Temperature Cool (0) Movement Core (50) Location -2/Research Parts ------- > --- POWER (2) -------- (None) > --- PROPULSION (6) --- (None) > --- UTILITY (13) ----- Makeshift Hacking Suite Improved System Shield > --- WEAPON (2) ------- (None) > --- INVENTORY (5) ---- Relay Coupler [Swarmer] (20) Relay Coupler [Hunter] (12) Gamma Bomb Array Force Lance Peak State ------------ > --- POWER ------------ Backup Power VII Backup Power VII > --- PROPULSION ------- Improved Antigrav System Improved Antigrav System Improved Antigrav System Backup Propulsion VII Backup Propulsion VII > --- UTILITY ---------- Advanced Sensor Array Advanced Signal Interpreter Advanced Actuator Array Advanced Reaction Control System Graphene Brace Hacking Suite Makeshift Hacking Suite Improved Hacking Suite System Shield Improved System Shield Improved System Shield Relay Coupler [Sentry] > --- WEAPON ----------- Advanced Remote Datajack Force Lance > --- INVENTORY -------- Relay Coupler [Swarmer] Relay Coupler [Hunter] Gamma Bomb Array Force Lance Force Lance [Rating: 127] Favorites ----------- Power Enhanced Nuclear Core Engine Backup Power III Power Core Enhanced Nuclear Core Reactor Fusion Reactor Propulsion Armored Wheel Leg Aluminum Leg Wheel Armored Wheel Hover Unit Backup Propulsion VII Flight Unit Improved VTOL Module Utility Small Storage Unit Device Sensor Drone Bay Storage Small Storage Unit Processor Improved Signal Interpreter Hackware Hacking Suite Protection Reflective Plating Weapon Spear Energy Gun Gatling Laser Energy Cannon Beam Cannon Ballistic Gun Improved Assault Rifle Ballistic Cannon Flak Cannon Launcher Grenade Launcher Special Weapon Improved Remote Datajack Impact Weapon Great Maul Slashing Weapon Scythe Piercing Weapon Spear Build | -11 -10 -10 -9 -8 -7 -7 -7 -7 -5 -5 -5 -5 -5 -5 -4 -4 -3 -3 -2 ------- Run | Yrd Mat Min Mat Mat Fac Sto Rec Scr Fac Gar Fac Upp Upp Zhi Pro Fac Res Qua Res Slots Evolved 16 | . . . 2 2 2 . . . 4 . . . . . . 2 2 . 2 Power 1 | . . . . . . . . . 1 . . . . . . . . . . Propulsion 4 | . . . . 1 1 . . . 1 . . . . . . . 1 . . Utility 11 | . . . 2 1 1 . . . 2 . . . . . . 2 1 . 2 Weapon . | . . . . . . . . . . . . . . . . . . . . Parts Attached 148 | 6 7 4 7 19 22 4 3 3 11 4 8 3 2 3 1 13 3 13 12 Power 14 | 1 . . 3 1 3 1 . . 1 . 2 1 . 1 . . . . . Engine 8 | 1 . . 3 1 1 . . . 1 . 1 . . . . . . . . Core 5 | . . . . . 2 1 . . . . 1 1 . . . . . . . Reactor 1 | . . . . . . . . . . . . . . 1 . . . . . Propulsion 45 | 2 2 1 . 2 9 1 2 1 3 . 4 1 1 . . 3 1 9 3 Treads . | . . . . . . . . . . . . . . . . . . . . Leg 2 | 2 . . . . . . . . . . . . . . . . . . . Wheel 4 | . 2 1 . 1 . . . . . . . . . . . . . . . Hover 11 | . . . . . . . . . . . . . . . . . . 8 3 Flight 28 | . . . . 1 9 1 2 1 3 . 4 1 1 . . 3 1 1 . Utility 56 | 1 . 2 3 5 8 2 . 2 7 2 2 1 1 1 1 8 1 4 5 Device 20 | . . 1 1 1 4 . . . 2 . . . . . . 4 1 2 4 Storage 1 | 1 . . . . . . . . . . . . . . . . . . . Processor 3 | . . . . . 1 . . . . . . 1 . . 1 . . . . Hackware 25 | . . . 1 1 3 2 . 1 5 2 2 . 1 . . 4 . 2 1 Protection 7 | . . 1 1 3 . . . 1 . . . . . 1 . . . . . Artifact . | . . . . . . . . . . . . . . . . . . . . Weapon 33 | 2 5 1 1 11 2 . 1 . . 2 . . . 1 . 2 1 . 4 Energy Gun 7 | 1 . . . 5 . . . . . . . . . . . . . . 1 Energy Cannon 2 | . 1 . . 1 . . . . . . . . . . . . . . . Ballistic Gun 2 | 1 . . . 1 . . . . . . . . . . . . . . . Ballistic Cannon 2 | . . 1 . 1 . . . . . . . . . . . . . . . Launcher 6 | . 2 . . 1 1 . . . . 1 . . . . . . . . 1 Special Weapon 2 | . . . . . . . . . . 1 . . . . . . . . 1 Impact Weapon 3 | . 2 . . 1 . . . . . . . . . . . . . . . Slashing Weapon 3 | . . . 1 1 . . . . . . . . . . . . 1 . . Piercing Weapon 6 | . . . . . 1 . 1 . . . . . . 1 . 2 . . 1 Special Melee Weapon . | . . . . . . . . . . . . . . . . . . . . Unidentified Prototypes 13 | . . 1 . 3 3 . . . . . . . . 3 . 2 . 1 . Corrupted Parts 5 | . . . . 1 . 1 . . 3 . . . . . . . . . . System Corruption 19 | . . . . 10 . 1 . . 8 . . . . . . . . . . Parts Lost 89 | . . 1 4 9 7 3 1 2 . 2 8 1 . . 7 4 6 16 18 Power 11 | . . . 2 1 1 . . . . . 2 . . . . . 1 2 2 Propulsion 32 | . . 1 . 1 2 1 1 1 . . 4 1 . . 1 . 2 11 6 Utility 35 | . . . 1 5 3 2 . 1 . 1 1 . . . 4 2 3 3 9 Weapon 11 | . . . 1 2 1 . . . . 1 1 . . . 2 2 . . 1 Highest Loss Streak 17 | . . 1 2 3 4 2 1 2 . 1 3 1 . . 7 2 6 14 17 To Critical Strikes 1 | . . . . . . . . . . . 1 . . . . . . . . Average Backups 6 | 1 6 6 6 7 6 7 8 7 6 6 5 5 5 7 7 3 4 4 4 Power . | . 1 1 . . . . . . . . . . . . . . . . . Propulsion 2 | . 1 1 3 4 4 5 3 1 1 1 . . . . . . . . . Utility 2 | . . 2 1 2 1 1 2 5 3 3 3 3 3 4 4 1 2 2 2 Weapon 1 | . 3 1 . . . 1 1 1 1 . . . 1 . . . . 2 2 Tool/Special . | . . . . . . . . . . . . . . . . . . . . Unused Backups 20 | . . 1 . 3 2 . 1 1 . 2 . . . . 2 3 1 2 2 Power 1 | . . . . . . . 1 . . . . . . . . . . . . Propulsion 6 | . . . . 3 2 . . . . 1 . . . . . . . . . Utility 9 | . . . . . . . . 1 . 1 . . . . 1 3 1 . 2 Weapon 1 | . . 1 . . . . . . . . . . . . . . . . . Tool/Special 3 | . . . . . . . . . . . . . . . 1 . . 2 . Average Slot Usage (%) 86 | . 85 98 96 80 81 94 87 92 81 83 85 91 88 85 84 85 94 80 75 Engine 5 | . 14 14 10 9 4 . . . 3 . 1 . . . . 5 8 2 . Core 2 | . . . . . . 6 7 7 5 5 2 9 11 6 4 . . 3 6 Wheel 9 | . 21 27 21 22 . . . . . . . . . . . . . . . Flight 12 | . . . . . 29 29 30 30 21 23 23 22 17 23 22 20 22 11 . Device 8 | . . . 13 9 7 10 7 6 1 2 . 5 5 1 4 12 18 12 13 Storage 6 | . 14 14 11 9 7 7 7 7 5 5 5 5 5 5 4 . . . . Processor 3 | . . . . . 4 7 7 7 5 5 5 5 5 5 5 7 4 4 3 Hackware 15 | . . . 7 4 10 14 15 16 27 29 33 29 29 29 27 25 23 31 26 Protection 3 | . . 12 10 8 . . . . . . . . . 2 . 5 3 . . Ballistic Cannon 2 | . . 12 7 5 . . . . . . . . . . . . . . . Launcher 3 | . 9 14 7 1 6 7 1 . 1 . . . . . . . . . . Slashing Weapon 1 | . . . 6 4 . . . . . . . . . . . . . . . Piercing Weapon 4 | . . . . . 4 7 9 15 6 7 4 5 5 6 10 7 8 7 3 Peak Build Rating 127 | 6 10 19 27 34 43 46 43 47 67 72 69 77 74 73 73 108 121 121 127 Average Rating 49 | 5 8 13 24 29 36 43 40 43 61 63 60 74 72 68 68 95 119 102 103 On Entrance 48 | . 6 10 14 26 16 43 42 43 44 67 66 69 73 74 73 56 107 87 59 Naked Turns . | . . . . . . . . . . . . . . . . . . . . Heaviest Build 53 | 14 16 23 38 53 21 21 18 18 27 25 20 24 24 20 17 22 23 23 31 Greatest Support 72 | 20 24 24 24 36 22 22 21 21 31 31 31 34 30 30 30 35 42 72 60 Greatest Overweight (x) 3 | . 1 . 1 2 3 . . . . . . . . . . . . . 1 Average Overweight (x) . | . . . . 1 . . . . . . . . . . . . . . . Largest Inventory Capacity 8 | 8 8 8 8 8 8 8 8 8 8 8 8 8 8 8 8 5 5 5 5 Average Capacity 7 | 7 8 8 8 8 8 8 8 8 8 8 8 8 8 8 7 5 5 5 5 Most Carried 8 | 2 8 8 8 8 8 8 8 8 8 8 8 6 5 8 8 5 5 5 5 Average Carried 6 | 1 6 6 6 7 6 7 7 7 6 6 5 5 5 7 7 3 4 4 4 Final Capacity 8 | 8 8 8 8 8 8 8 8 8 8 8 8 8 8 8 5 5 5 5 5 Final Carried 8 | 2 8 6 7 8 8 8 8 7 7 8 3 6 5 8 4 5 5 5 4 Class Distribution -------------------- 41% | Mutant 21% | Hacker-Sprinter 18% | Commander-Sprinter 4% | Wizard-Mutant 3% | Hacker-Mutant Dominant Class ---------------- Mutant | -10/Materials Mutant | -10/Mines Mutant | -9/Materials Mutant | -8/Materials Hacker-Sprinter | -7/Factory Commander-Sprinter | -7/Storage Commander-Sprinter | -7/Recycling Commander-Sprinter | -7/Scraptown Commander-Sprinter | -5/Factory Hacker-Sprinter | -5/Garrison Hacker-Sprinter | -5/Factory Hacker-Mutant | -5/Upper Caves Hacker-Mutant | -5/Upper Caves Hacker-Sprinter | -5/Zhirov Hacker-Sprinter | -4/Proximity Caves Hacker-Sprinter | -4/Factory Hacker-Sprinter | -3/Research Wizard-Sprinter | -3/Quarantine Wizard-Mutant | -2/Research Resources | -11 -10 -10 -9 -8 -7 -7 -7 -7 -5 -5 -5 -5 -5 -5 -4 -4 -3 -3 -2 ----------- Run | Yrd Mat Min Mat Mat Fac Sto Rec Scr Fac Gar Fac Upp Upp Zhi Pro Fac Res Qua Res Matter Collected 3661 | 166 201 108 606 890 197 212 20 55 273 192 146 87 67 . 46 254 20 75 46 Remotely . | . . . . . . . . . . . . . . . . . . . . Salvage Created 4125 | . 232 101 644 1255 225 182 184 45 304 102 113 . 22 . 15 222 181 135 163 Parts 266 | . 18 19 43 59 21 16 5 2 10 6 6 . 2 . 6 16 7 13 17 Haulers Intercepted 6 | . . . 1 3 1 1 . . . . . . . . . . . . . Recyclers Shooed 3 | . 1 . . 1 . . . . . . . . . . . . . . 1 Parts Field Recycled . | . . . . . . . . . . . . . . . . . . . . Retrieved Matter . | . . . . . . . . . . . . . . . . . . . . Parts Self-Destructed 14 | . . . . . . . . . . . . . 8 . 6 . . . . Prevented 4 | . . . . . . . . . . . . . 4 . . . . . . Kills | -11 -10 -10 -9 -8 -7 -7 -7 -7 -5 -5 -5 -5 -5 -5 -4 -4 -3 -3 -2 ------- Run | Yrd Mat Min Mat Mat Fac Sto Rec Scr Fac Gar Fac Upp Upp Zhi Pro Fac Res Qua Res Combat Hostiles Destroyed 107 | . 11 9 17 29 9 4 1 1 5 6 2 . 1 . 2 1 4 2 3 Melee 35 | . 2 . 3 5 4 1 1 1 1 2 2 . 1 . 2 1 4 2 3 Guns 4 | . . . . 4 . . . . . . . . . . . . . . . Cannons 27 | . 1 2 8 16 . . . . . . . . . . . . . . . AOE 39 | . 7 7 6 3 5 3 . . 4 4 . . . . . . . . . Classes Destroyed 17 | . 6 1 3 4 1 . . 1 . . . . . . . 1 . . . Worker 8 | . 2 1 1 1 . 1 . . 2 . . . . . . . . . . Builder 3 | . 1 . 2 . . . . . . . . . . . . . . . . Tunneler 2 | . . 2 . . . . . . . . . . . . . . . . . Hauler 6 | . . . 1 3 1 1 . . . . . . . . . . . . . Recycler 4 | . . . . 3 . . 1 . . . . . . . . . . . . Operator 12 | . 1 . 2 3 1 2 . . . . . . . . . 1 1 . 1 Drone 3 | . . . . 1 . . . . . . . . . . 2 . . . . Watcher 10 | . 3 . 2 3 . . . . . . . . . . . 2 . . . Swarmer 46 | . 6 9 2 6 8 3 . . . 6 . . 1 . . . 4 . 1 Grunt 37 | . 5 . 12 15 . 1 . . 4 . . . . . . . . . . Brawler 1 | . . . 1 . . . . . . . . . . . . . . . . Duelist 3 | . . . . 3 . . . . . . . . . . . . . . . Sentry 8 | . . . 2 4 . . 1 . 1 . . . . . . . . . . Hunter 1 | . . . . 1 . . . . . . . . . . . . . . . Programmer 8 | . . . . . 1 . 1 . . . 2 . . . . . . 2 2 Behemoth 1 | . . . . . . . . . . . . . . . . 1 . . . Ranger 1 | . . . . . . . . 1 . . . . . . . . . . . Best Kill Streak 6 | . 4 4 4 4 4 4 1 1 5 6 2 . 1 . 2 1 3 2 1 Combat Bots Only 6 | . 3 3 2 4 4 4 1 1 4 6 2 . 1 . 2 1 3 2 1 Max Kills in Single Turn 4 | . 3 2 2 3 2 2 1 1 2 4 1 . 1 . 1 1 1 1 1 Gunslinging . | . . . . . . . . . . . . . . . . . . . . Exploded 4 | . 2 2 1 2 2 2 . . 1 4 . . . . . . . . . Melee 1 | . 1 . 1 1 1 1 1 1 1 1 1 . 1 . 1 1 1 1 1 Uniques/NPCs Destroyed . | . . . . . . . . . . . . . . . . . . . . Combat | -11 -10 -10 -9 -8 -7 -7 -7 -7 -5 -5 -5 -5 -5 -5 -4 -4 -3 -3 -2 -------- Run | Yrd Mat Min Mat Mat Fac Sto Rec Scr Fac Gar Fac Upp Upp Zhi Pro Fac Res Qua Res Hostile Shots Fired 992 | . 54 17 72 192 65 19 27 20 13 20 53 13 16 . 63 18 39 108 183 Missed 413 | . 13 4 17 42 31 11 20 5 8 15 33 9 13 . 40 11 21 38 82 Hits 579 | . 41 13 55 150 34 8 7 15 5 5 20 4 3 . 23 7 18 70 101 Melee 6 | . . . 3 2 . . . . . . . . . . . . . . 1 Projectile 573 | . 41 13 52 148 34 8 7 15 5 5 20 4 3 . 23 7 18 70 100 AOE 2 | . . . . . . . . . . . 2 . . . . . . . . Critical Strikes 21 | . 2 . 2 4 . . . 1 . . 1 1 . . . . 1 6 3 Actively Blocked 9 | . . . . . . . . . . . . . . . . . 1 6 2 Part Disruptions 2 | . . . . 1 . . . . . . . . . . . . . 1 . Damage Taken 10337 | . 416 110 625 2374 531 150 105 172 148 185 570 74 52 . 388 92 541 1488 2316 Core 3277 | . 90 33 140 208 233 46 24 34 20 3 242 38 35 . 113 18 123 407 1470 Absorbed by Shields 69 | . . . . . . . . 69 . . . . . . . . . . . Redirected to Shielding 220 | . . . . . . . . . . . . . . . 37 . 183 . . Ignored by Resistances 74 | . . . 74 . . . . . . . . . . . . . . . . Regen/Repaired (Parts) 230 | . . . 144 86 . . . . . . . . . . . . . . . Core Remaining (%) 67 | 100 . 50 65 62 . . . 51 . . . . . . 54 98 . 59 . Volleys Fired 297 | . 40 13 45 149 11 2 . . 8 8 10 . 5 . 4 . . . 2 Largest 2 | . 1 1 1 2 1 1 . . 1 1 1 . 1 . 1 . . . 1 Hottest 92 | . 60 37 37 92 36 30 . . 30 43 7 . 7 . 7 . . . 10 Shots Fired 300 | . 40 13 45 151 11 2 1 . 8 8 10 . 5 . 4 . . . 2 Gun 52 | . . . . 52 . . . . . . . . . . . . . . . Cannon 160 | . 26 8 32 94 . . . . . . . . . . . . . . . Launcher 64 | . 14 5 13 5 11 2 1 . 8 5 . . . . . . . . . Special 24 | . . . . . . . . . . 3 10 . 5 . 4 . . . 2 Kinetic 123 | . . 8 32 83 . . . . . . . . . . . . . . . Thermal 78 | . 26 . . 52 . . . . . . . . . . . . . . . Explosive 64 | . 14 5 13 5 11 2 1 . 8 5 . . . . . . . . . Electromagnetic 11 | . . . . 11 . . . . . . . . . . . . . . . Robot Hit Streak 9 | . 5 3 8 9 . . . . 1 2 3 . 2 . 2 . . . 4 Robot Miss Streak 12 | . 3 6 8 12 . . 1 . . 1 2 . 3 . 2 . . . . Penetration Max . | . . . . . . . . . . . . . . . . . . . . Secondary Targets . | . . . . . . . . . . . . . . . . . . . . Shots Hit Robots 326 | . 25 8 54 148 8 11 6 3 8 6 10 . 4 . 4 9 9 7 6 Core Hits 271 | . 26 18 49 106 12 7 4 1 14 8 3 . 1 . 2 4 5 3 8 Critical Kills . | . . . . . . . . . . . . . . . . . . . . Critical Parts Destroyed 2 | . 1 . . . 1 . . . . . . . . . . . . . . Critical Strikes 11 | . 1 . 2 . 1 . . . . . . . 1 . . 1 1 3 1 Smash 2 | . 1 . . . 1 . . . . . . . . . . . . . . Sever 2 | . . . 2 . . . . . . . . . . . . . . . . Impale 7 | . . . . . . . . . . . . . 1 . . 1 1 3 1 Melee Attacks 300 | . 13 . 33 22 31 23 7 7 17 9 24 . 4 . 4 32 37 28 9 Impact 35 | . 13 . . 4 18 . . . . . . . . . . . . . . Slashing 51 | . . . 33 18 . . . . . . . . . . . . . . . Piercing 214 | . . . . . 13 23 7 7 17 9 24 . 4 . 4 32 37 28 9 Sneak Attacks 21 | . . . 5 3 2 5 2 . 2 . . . . . . 2 . . . Combat Hostiles 3 | . . . . . . . 1 . 1 . . . . . . 1 . . . Follow-up Attacks 5 | . . . . . . . . . . . . . . . 1 1 3 . . Damage Inflicted 13447 | . 1178 428 2452 3741 901 821 474 105 870 529 170 . 28 . 65 544 474 371 296 Guns 890 | . . . . 890 . . . . . . . . . . . . . . . Cannons 2391 | . 212 87 593 1499 . . . . . . . . . . . . . . . Explosions 4505 | . 717 341 985 724 400 264 161 . 530 383 . . . . . . . . . Melee 5604 | . 249 . 874 611 501 557 313 105 340 146 170 . 28 . 65 544 474 371 256 Ramming 57 | . . . . 17 . . . . . . . . . . . . . . 40 Kinetic 1905 | . . 87 593 1225 . . . . . . . . . . . . . . . Thermal 1239 | . 212 . . 1027 . . . . . . . . . . . . . . . Explosive 4095 | . 717 341 983 316 400 264 161 . 530 383 . . . . . . . . . Electromagnetic 547 | . . . 2 545 . . . . . . . . . . . . . . . Impact 854 | . 249 . . 243 362 . . . . . . . . . . . . . . Slashing 1242 | . . . 874 368 . . . . . . . . . . . . . . . Piercing 3508 | . . . . . 139 557 313 105 340 146 170 . 28 . 65 544 474 371 256 Highest Corruption 14 | . . . 1 13 5 2 2 . 10 10 14 14 14 14 14 . 1 9 11 Average Corruption 7 | . . . 1 12 2 1 2 . 5 10 11 14 14 14 14 . 1 1 4 Corruption Purged 5 | . . . . . 5 . . . . . . . . . . . . . . Corruption Blocked . | . . . . . . . . . . . . . . . . . . . . Effects 199 | . . . 3 71 7 4 9 . 22 13 25 5 4 2 25 . . 6 3 Message Errors 45 | . . . 1 13 1 3 4 . 7 1 5 . 2 1 5 . . 1 1 Matter Fused 50 | . . . 1 22 1 . 2 . 7 3 4 4 1 . 5 . . . . Heat Flow Errors 20 | . . . . 7 1 . . . 2 2 2 . 1 1 4 . . . . Energy Discharges 17 | . . . . 3 1 1 . . 3 3 2 . . . 1 . . 3 . Parts Rejected 4 | . . . . 1 . . . . 1 . . . . . 1 . . 1 . Parts Fused 1 | . . . . 1 . . . . . . . . . . . . . . . Data Loss (minor) 28 | . . . 1 9 3 . 1 . 1 2 3 . . . 6 . . 1 1 Data Loss (major) 11 | . . . . 4 . . 1 . 1 2 2 . . . 1 . . . . Misfires 4 | . . . . 3 . . 1 . . . . . . . . . . . . Alerts 4 | . . . . 2 . . . . . . 1 1 . . . . . . . Misdirections 12 | . . . . 3 . . . . . . 6 . . . 2 . . . 1 Weapon Failures 3 | . . . . 3 . . . . . . . . . . . . . . . Overload Shots . | . . . . . . . . . . . . . . . . . . . . Overflow Damage 718 | . 52 . 97 92 90 88 90 39 . 88 . . . . . 17 18 47 . Projectiles . | . . . . . . . . . . . . . . . . . . . . Explosions 210 | . . . 77 23 5 . 17 . . 88 . . . . . . . . . Melee 508 | . 52 . 20 69 85 88 73 39 . . . . . . . 17 18 47 . Knockbacks 72 | . 1 4 9 56 2 . . . . . . . . . . . . . . Impact 4 | . 1 . . 1 2 . . . . . . . . . . . . . . Kinetic 66 | . . 4 9 53 . . . . . . . . . . . . . . . Secondary 2 | . . . . 2 . . . . . . . . . . . . . . . Self-Inflicted Damage 415 | . 21 . 36 139 77 . 49 . . 77 . . . . . . . . 16 Shots 12 | . 2 . 2 4 2 . 1 . . 1 . . . . . . . . . Rammed 15 | . . . . 1 . . . . . . . . . . . . . . 14 Targets Rammed 15 | . . . . 1 . . . . . . . . . . . . . . 14 Kicked . | . . . . . . . . . . . . . . . . . . . . Crushed . | . . . . . . . . . . . . . . . . . . . . Highest Temperature 440 | . 200 8 12 440 154 7 2 18 238 196 248 28 115 261 150 . . . . Average Temperature 90 | . 67 3 5 107 69 4 2 14 108 94 109 15 58 125 66 . . . . Received Heat Transfer 2062 | . 75 . 300 1008 39 48 12 103 57 9 63 45 . . 27 . 60 135 81 Effects 10 | . . . . 10 . . . . . . . . . . . . . . . Shutdowns 2 | . . . . 2 . . . . . . . . . . . . . . . Energy Bleed 1 | . . . . 1 . . . . . . . . . . . . . . . Interference 5 | . . . . 5 . . . . . . . . . . . . . . . Short Circuit 1 | . . . . 1 . . . . . . . . . . . . . . . Damage (minor) 1 | . . . . 1 . . . . . . . . . . . . . . . Siege Activations . | . . . . . . . . . . . . . . . . . . . . Martial Activations . | . . . . . . . . . . . . . . . . . . . . Shielding Activations . | . . . . . . . . . . . . . . . . . . . . Robots Disrupted . | . . . . . . . . . . . . . . . . . . . . Combat Hostiles . | . . . . . . . . . . . . . . . . . . . . Robots Corrupted 1 | . 1 . . . . . . . . . . . . . . . . . . Combat Hostiles 1 | . 1 . . . . . . . . . . . . . . . . . . Parts Fried 5 | . 2 . . 2 . 1 . . . . . . . . . . . . . Impact Corruptions 7 | . 4 . . 1 2 . . . . . . . . . . . . . . Robots Melted 1 | . . . . 1 . . . . . . . . . . . . . . . Combat Hostiles 1 | . . . . 1 . . . . . . . . . . . . . . . Parts Melted 5 | . 1 . . 1 . . . . 1 . . . . . . 2 . . . Heat Transferred 2542 | . 444 . . 2098 . . . . . . . . . . . . . . . Parts Sabotaged . | . . . . . . . . . . . . . . . . . . . . Parts Stolen . | . . . . . . . . . . . . . . . . . . . . Parts Stripped . | . . . . . . . . . . . . . . . . . . . . Power Chain Reactions 2 | . . . . 1 1 . . . . . . . . . . . . . . Alert | -11 -10 -10 -9 -8 -7 -7 -7 -7 -5 -5 -5 -5 -5 -5 -4 -4 -3 -3 -2 ------- Run | Yrd Mat Min Mat Mat Fac Sto Rec Scr Fac Gar Fac Upp Upp Zhi Pro Fac Res Qua Res Maximum Alert Level 5 | . 1 . . 1 3 3 1 . 4 5 4 . . . . 1 1 . . Low Security (%) 67 | 100 75 100 100 76 19 . 88 . 13 . . . . . . 93 98 100 100 Level 1 13 | . 24 . . 23 57 13 11 . . . . . . . . 6 1 . . Level 2 3 | . . . . . 12 55 . . 10 . . . . . . . . . . Level 3 5 | . . . . . 9 31 . . 15 2 57 . . . . . . . . Level 4 7 | . . . . . . . . . 59 37 42 . . . . . . . . Level 5 1 | . . . . . . . . . . 60 . . . . . . . . . High Security . | . . . . . . . . . . . . . . . . . . . . Max Security . | . . . . . . . . . . . . . . . . . . . . Peak Influence 1772 | . 296 126 147 357 728 1069 237 . 1455 1772 1487 . . . . 337 226 154 76 Initial 997 | . . 33 24 29 141 317 237 . . 997 924 . . . . 321 27 36 31 Average 285 | . 96 53 49 117 370 663 85 . 1030 1605 1119 . . . . 63 81 70 20 Influence Increases 11055 | . 419 253 623 977 1229 1155 72 . 1981 1135 1121 75 60 . 130 687 427 442 269 Destroy 0b10 Robot/C 4100 | . 220 180 340 580 340 440 40 . 780 460 380 . 20 . . 60 80 120 60 Destroy 0b10 Robot/NC 285 | . 35 15 40 60 20 35 5 . 30 5 5 . . . 10 15 5 . 5 Destroy Leader 766 | . 56 30 66 142 72 104 . . 142 40 60 . 10 . . 14 10 10 10 Allied During Kill 1648 | . . . . . 84 370 13 . 774 251 139 . . . . 15 . . 2 Successful Hack 459 | . 22 . 26 5 125 36 4 . 19 . 43 . . . . 54 81 20 24 Select Force Hacks 30 | . . . . . . . . . . . . . . . . . . . 30 Disable Machine 735 | . 15 . 15 75 315 45 . . 150 30 30 . . . . 30 . 30 . Anti-Garrison Action 150 | . . . . . . . . . . 150 . . . . . . . . . Destroy Structure 752 | . 56 28 61 70 78 50 10 . 86 154 74 . . . . 34 26 22 3 Advance Influence 300 | . . . . . . . . . . . . . . . . 300 . . . Partial Spotted 315 | . . . . . 45 60 . . . 45 15 . . . . 30 75 30 15 Lose Combat Pursuer 1515 | . 15 . 75 45 150 15 . . . . 375 75 30 . 120 135 150 210 120 Influence Decreases 10979 | . 333 277 615 735 843 1245 680 . 556 798 1656 535 206 621 96 669 415 450 249 Entered New Map 3634 | . . 53 38 41 171 381 371 . . 428 838 455 146 621 . 13 25 28 25 Time Decay 3690 | . 183 214 386 444 422 214 219 . 376 . 238 70 60 . 34 274 180 222 154 Lost Part 730 | . . 10 40 90 70 30 10 . . 20 80 10 . . 62 30 60 160 58 Lost Ally 986 | . . . . 10 30 20 80 . 180 350 200 . . . . 64 . 40 12 Purge Threat 1939 | . 150 . 151 150 150 600 . . . . 300 . . . . 288 150 . . Squads Dispatched 76 | . 1 . 2 4 11 6 . . 14 . 10 . . . 1 14 3 5 5 Investigation 35 | . . . . . 8 1 . . 6 . 7 . . . . 9 . 3 1 Extermination 14 | . . . . . 3 . . . 2 . 1 . . . . 3 1 2 2 Reinforcement 17 | . 1 . 2 3 . 4 . . 1 . . . . . . 2 2 . 2 Assault 4 | . . . . . . . . . 1 . 2 . . . 1 . . . . Garrison 6 | . . . . 1 . 1 . . 4 . . . . . . . . . . Intercept . | . . . . . . . . . . . . . . . . . . . . Searches Triggered . | . . . . . . . . . . . . . . . . . . . . Construction Impeded 2 | . . . . . . 1 . . 1 . . . . . . . . . . Haulers Reinforced 1 | . . . . . . 1 . . . . . . . . . . . . . Active Scanning Responses . | . . . . . . . . . . . . . . . . . . . . Cargo Convoy Interrupts . | . . . . . . . . . . . . . . . . . . . . Stealth | -11 -10 -10 -9 -8 -7 -7 -7 -7 -5 -5 -5 -5 -5 -5 -4 -4 -3 -3 -2 --------- Run | Yrd Mat Min Mat Mat Fac Sto Rec Scr Fac Gar Fac Upp Upp Zhi Pro Fac Res Qua Res Distress Signals 19 | . . . 2 4 2 2 . . 1 . 3 . . . . . 2 1 2 Communications Jammed . | . . . . . . . . . . . . . . . . . . . . Distress Signals . | . . . . . . . . . . . . . . . . . . . . Times Spotted 412 | . 19 9 33 55 28 21 3 8 27 30 36 7 9 . 19 21 28 26 33 Peak Tracking Total 18 | . 3 3 5 5 5 4 2 4 5 12 10 5 5 . 9 10 12 9 18 Tactical Retreats 51 | . 1 . 4 3 5 1 . . . . 10 1 1 . 4 7 5 5 4 Traps | -11 -10 -10 -9 -8 -7 -7 -7 -7 -5 -5 -5 -5 -5 -5 -4 -4 -3 -3 -2 ------- Run | Yrd Mat Min Mat Mat Fac Sto Rec Scr Fac Gar Fac Upp Upp Zhi Pro Fac Res Qua Res Traps Triggered 13 | . . . 1 3 . 1 . . 2 2 . . . . . 3 . 1 . Indirectly . | . . . . . . . . . . . . . . . . . . . . Trap Hack Attempts . | . . . . . . . . . . . . . . . . . . . . Triggered . | . . . . . . . . . . . . . . . . . . . . Disarmed . | . . . . . . . . . . . . . . . . . . . . Reprogrammed . | . . . . . . . . . . . . . . . . . . . . Reused . | . . . . . . . . . . . . . . . . . . . . Traps Extracted . | . . . . . . . . . . . . . . . . . . . . Installed . | . . . . . . . . . . . . . . . . . . . . Triggered . | . . . . . . . . . . . . . . . . . . . . Machines | -11 -10 -10 -9 -8 -7 -7 -7 -7 -5 -5 -5 -5 -5 -5 -4 -4 -3 -3 -2 ---------- Run | Yrd Mat Min Mat Mat Fac Sto Rec Scr Fac Gar Fac Upp Upp Zhi Pro Fac Res Qua Res Machines Disabled 53 | . 1 . 1 5 21 3 . . 10 6 2 . . . . 2 . 2 . Max in Single Turn 4 | . 1 . 1 2 4 1 . . 1 1 . . . . . 1 . 1 . Garrison Access 5 | . . . . 1 1 1 . . 1 . 1 . . . . . . . . Garrison Relay 2 | . . . . . . . . . . 2 . . . . . . . . . Phase Generator 1 | . . . . . . . . . . 1 . . . . . . . . . Machines Repaired . | . . . . . . . . . . . . . . . . . . . . Machines Dismantled . | . . . . . . . . . . . . . . . . . . . . Machines Sabotaged . | . . . . . . . . . . . . . . . . . . . . Overloaded Fab Kills . | . . . . . . . . . . . . . . . . . . . . Hacking | -11 -10 -10 -9 -8 -7 -7 -7 -7 -5 -5 -5 -5 -5 -5 -4 -4 -3 -3 -2 --------- Run | Yrd Mat Min Mat Mat Fac Sto Rec Scr Fac Gar Fac Upp Upp Zhi Pro Fac Res Qua Res Machines Accessed 139 | . 6 2 10 9 18 13 7 6 12 2 10 . 1 5 . 18 5 12 3 Terminals 83 | . 6 . 7 5 12 12 6 . 5 2 5 . . . . 9 4 9 1 Fabricators 8 | . . . . . 5 . . . 1 . 1 . . . . 1 . . . Repair Stations 7 | . . . 2 1 . . . . . . . . . . . 1 . 2 1 Recycling Units 14 | . . . . 2 . . 1 . 4 . 1 . . . . 6 . . . Scanalyzers 4 | . . . 1 . . . . . . . 1 . . . . 1 1 . . Garrison Access 9 | . . . . 1 1 1 . . 2 . 2 . . . . . . 1 1 Total Hacks 501 | . 23 2 40 25 70 36 19 36 29 3 32 . 1 18 . 82 22 52 11 Successful 310 | . 14 2 30 15 30 22 8 36 17 2 22 . 1 18 . 49 11 28 5 Failed 190 | . 9 . 10 10 40 14 11 . 12 1 9 . . . . 33 11 24 6 Catastrophic 31 | . 1 . . 2 6 3 1 . 3 . 2 . . . . 8 3 1 1 Database Lockouts 1 | . . . . . . . . . . . 1 . . . . . . . . Manual 253 | . 22 . 25 13 37 20 14 . 17 . 19 . . . . 50 9 25 2 Terminals 348 | . 23 . 35 15 53 34 18 . 16 3 22 . . . . 65 18 41 5 Fabricators 25 | . . . . . 15 . . . 6 . 2 . . . . 2 . . . Repair Stations 24 | . . . 4 4 . . . . . . . . . . . 4 . 9 3 Recycling Units 18 | . . . . 3 . . 1 . 4 . 1 . . . . 9 . . . Scanalyzers 11 | . . . 1 . . . . . . . 4 . . . . 2 4 . . Garrison Access 18 | . . . . 3 2 2 . . 3 . 3 . . . . . . 2 3 Terminal Hacks 164 | . 7 2 11 1 7 15 4 36 5 2 6 . 1 18 . 26 8 13 2 Record 39 | . . . . . . . . 31 . . . . . 6 . . . 2 . Part Schematic 7 | . . . . . 1 . 1 . . . . . . 4 . 1 . . . Robot Schematic 1 | . . . . . 1 . . . . . . . . . . . . . . Robot Analysis 19 | . 3 . . . . 2 . 5 . . 1 . . 4 . 3 . 1 . Prototype ID Bank 12 | . 2 . 1 . . . 1 . . . . . . 4 . 3 . 1 . Open Door 10 | . . 2 . . . 6 . . . 1 . . 1 . . . . . . Branch Access Points 4 | . . . 1 . . . . . 1 . 1 . . . . 1 . . . Emergency Access Points 1 | . . . . . . . . . . . 1 . . . . . . . . Machine Index 3 | . . . . . . . . . 1 . 1 . . . . 1 . . . Terminal Index 9 | . . . 1 . 1 2 1 . 1 . . . . . . 1 1 1 . Fabricator Index 3 | . . . . . 1 . . . 1 . . . . . . 1 . . . Repair Station Index 3 | . . . 1 . . . . . 1 . . . . . . . 1 . . Recycling Unit Index 2 | . . . . . . . . . . . . . . . . . 1 1 . Scanalyzer Index 1 | . . . . . . . . . . . . . . . . . 1 . . Alert Level 1 | . . . . . 1 . . . . . . . . . . . . . . Unreport Threat 13 | . 1 . 2 1 1 4 . . . . 1 . . . . 2 1 . . Locate Traps 9 | . . . . . 1 1 . . . . 1 . . . . 2 2 1 1 Security Status 2 | . . . 1 . . . . . . . . . . . . 1 . . . Patrol Status 3 | . 1 . 1 . . . . . . . . . . . . 1 . . . Recall Investigation 3 | . . . . . . . . . . . . . . . . 3 . . . Recall Extermination 1 | . . . . . . . . . . . . . . . . 1 . . . Hauler Manifests 2 | . . . 1 . . . . . . . . . . . . . . 1 . Registered Components 1 | . . . . . . . . . . . . . . . . . . 1 . Registered Prototypes 1 | . . . . . . . . . . . . . . . . . . 1 . Zone Layout 13 | . . . 2 . . . 1 . . . . . . . . 5 1 3 1 Garrison Registry 1 | . . . . . . . . . . 1 . . . . . . . . . Fabricator Hacks 20 | . . . . . 10 . . . 6 . 2 . . . . 2 . . . Load Schematic 10 | . . . . . 5 . . . 3 . 1 . . . . 1 . . . Build 10 | . . . . . 5 . . . 3 . 1 . . . . 1 . . . Repair Station Hacks 14 | . . . 4 4 . . . . . . . . . . . 1 . 4 1 Scan Component 4 | . . . 2 2 . . . . . . . . . . . . . . . Repair 4 | . . . 2 2 . . . . . . . . . . . . . . . Refit 6 | . . . . . . . . . . . . . . . . 1 . 4 1 Recycling Unit Hacks 3 | . . . . 1 . . 1 . . . . . . . . 1 . . . Retrieve Components 3 | . . . . 1 . . 1 . . . . . . . . 1 . . . Scanalyzer 9 | . . . 1 . . . . . . . 4 . . . . 2 2 . . Insert Component 5 | . . . 1 . . . . . . . 2 . . . . 1 1 . . Analyze 4 | . . . . . . . . . . . 2 . . . . 1 1 . . Garrison Access Hacks 7 | . . . . 1 1 1 . . 2 . 1 . . . . . . . 1 Unlock Access 1 | . . . . . . . . . 1 . . . . . . . . . . Seal Access 4 | . . . . 1 1 1 . . 1 . . . . . . . . . . Coupler Status 2 | . . . . . . . . . . . 1 . . . . . . . 1 Unauthorized Hacks 93 | . 7 . 14 8 12 6 3 . 4 . 9 . . . . 17 1 11 1 Terminals 77 | . 7 . 14 7 12 6 3 . . . 6 . . . . 11 1 10 . Track 1 | . . . . . . . . . . . . . . . . . . 1 . Assimilate 6 | . 1 . 2 . 2 . . . . . 1 . . . . . . . . Botnet 27 | . 3 . 6 2 3 2 . . . . 2 . . . . 5 1 3 . Operators 5 | . 1 . 1 1 1 . . . . . . . . . . . . 1 . Skim 38 | . 2 . 5 4 6 4 3 . . . 3 . . . . 6 . 5 . Fabricators . | . . . . . . . . . . . . . . . . . . . . Repair Stations . | . . . . . . . . . . . . . . . . . . . . Recycling Units 12 | . . . . 1 . . . . 4 . 1 . . . . 6 . . . Recyclers 1 | . . . . 1 . . . . . . . . . . . . . . . Fedlink 6 | . . . . . . . . . 1 . . . . . . 5 . . . Scrapoids 5 | . . . . . . . . . 3 . 1 . . . . 1 . . . Scanalyzers . | . . . . . . . . . . . . . . . . . . . . Garrison Access 4 | . . . . . . . . . . . 2 . . . . . . 1 1 Reprogram 3 | . . . . . . . . . . . 2 . . . . . . 1 . Eject 1 | . . . . . . . . . . . . . . . . . . . 1 Data Cores Recovered . | . . . . . . . . . . . . . . . . . . . . Used . | . . . . . . . . . . . . . . . . . . . . Hacking Detections 84 | . 6 . 9 7 17 6 4 . 5 . 6 . . . . 12 5 6 1 Full Trace Events 18 | . 1 . . 1 8 1 . . 1 . 3 . . . . 2 . 1 . Feedback Events 3 | . . . . . . 2 . . . . 1 . . . . . . . . Corruption 2 | . . . . . . 1 . . . . 1 . . . . . . . . Hackware Fried 1 | . . . . . . 1 . . . . . . . . . . . . . Feedback Blocked . | . . . . . . . . . . . . . . . . . . . . Robot Schematics Acquired 1 | . . . . . 1 . . . . . . . . . . . . . . Robots Built 16 | . . . . . 8 . . . 6 . 2 . . . . . . . . Authchips 4 | . . . . . 1 . . . 3 . . . . . . . . . . Time 804 | . . . . . 335 . . . 402 . 67 . . . . . . . . Total Robot Build Rating 64 | . . . . . 32 . . . 24 . 8 . . . . . . . . Part Schematics Acquired 11 | . . . . . 1 . 1 . . . 2 . . 4 . 2 1 . . Parts Built 4 | . . . . . 2 . . . . . . . . . . 2 . . . Authchips . | . . . . . . . . . . . . . . . . . . . . Time 81 | . . . . . 42 . . . . . . . . . . 39 . . . Total Part Build Rating 22 | . . . . . 8 . . . . . . . . . . 14 . . . Parts Repaired 3 | . . . 2 1 . . . . . . . . . . . . . . . Time 134 | . . . 64 70 . . . . . . . . . . . . . . . Parts Recycled . | . . . . . . . . . . . . . . . . . . . . Recycled Matter . | . . . . . . . . . . . . . . . . . . . . Retrieved Matter . | . . . . . . . . . . . . . . . . . . . . Retrieved Components 8 | . . . . 2 . . 3 . . . . . . . . 3 . . . Parts Scanalyzed 4 | . . . . . . . . . . . 2 . . . . 1 1 . . Part Schematics Acquired 4 | . . . . . . . . . . . 2 . . . . 1 1 . . Parts Damaged . | . . . . . . . . . . . . . . . . . . . . Bothacking | -11 -10 -10 -9 -8 -7 -7 -7 -7 -5 -5 -5 -5 -5 -5 -4 -4 -3 -3 -2 ------------ Run | Yrd Mat Min Mat Mat Fac Sto Rec Scr Fac Gar Fac Upp Upp Zhi Pro Fac Res Qua Res Used RIF Installer 1 | . . . . . . . . . . 1 . . . . . . . . . Robots Hacked 14 | . . . . . . . . . . 2 5 . 3 . 2 . . . 2 Non-combat 4 | . . . . . . . . . . . 4 . . . . . . . . Combat 10 | . . . . . . . . . . 2 1 . 3 . 2 . . . 2 Robot Hacks Applied 15 | . . . . . . . . . . 2 6 . 3 . 2 . . . 2 locate_stockpiles 1 | . . . . . . . . . . . 1 . . . . . . . . purge_threat 1 | . . . . . . . . . . . 1 . . . . . . . . find_terminals 1 | . . . . . . . . . . . 1 . . . . . . . . link_fov 1 | . . . . . . . . . . . 1 . . . . . . . . scatter_targeting 1 | . . . . . . . . . . . 1 . . . . . . . . disrupt_area 1 | . . . . . . . . . . . . . . . 1 . . . . overload_power 2 | . . . . . . . . . . . . . 1 . 1 . . . . amplify_resonance 4 | . . . . . . . . . . 1 1 . 2 . . . . . . reboot_system 2 | . . . . . . . . . . 1 . . . . . . . . 1 formatsys_high 1 | . . . . . . . . . . . . . . . . . . . 1 Relay Couplers Released 12 | . . . . . . . . . . 8 1 . . . . . . . 3 Ejected 3 | . . . . . . . . . . . . . . . . . . . 3 Machine Destruction 9 | . . . . . . . . . . 8 1 . . . . . . . . Attached 6 | . . . . . . . . . . 2 2 . 1 . . . . . 1 Fabnet Peak Effective % . | . . . . . . . . . . . . . . . . . . . . Robots Rewired 2 | . . . . . . . 1 . 1 . . . . . . . . . . Allies Hacked 9 | . . . . . 1 5 1 . 1 1 . . . . . . . . . Hacks Repelled . | . . . . . . . . . . . . . . . . . . . . Allies | -11 -10 -10 -9 -8 -7 -7 -7 -7 -5 -5 -5 -5 -5 -5 -4 -4 -3 -3 -2 -------- Run | Yrd Mat Min Mat Mat Fac Sto Rec Scr Fac Gar Fac Upp Upp Zhi Pro Fac Res Qua Res Total Allies 70 | . 1 . 2 . 11 5 2 1 22 5 13 . . . . 5 . 2 1 Largest Group 18 | . 1 1 2 2 9 10 10 7 18 18 5 . . . . 5 . 2 1 Highest-Rated Group 788 | . 10 10 20 20 322 343 319 210 725 788 223 . . . . 235 . 164 64 Highest-Rated Ally 82 | . 10 10 10 10 37 37 40 40 53 62 47 . . . . 47 . 82 64 Total Orders 35 | . 2 . 13 16 . . . . . . . . . . . 4 . . . STAY 15 | . 1 . 6 7 . . . . . . . . . . . 1 . . . FOLLOW 13 | . 1 . 6 6 . . . . . . . . . . . . . . . EXPLORE 1 | . . . . . . . . . . . . . . . . 1 . . . RETURN 6 | . . . 1 3 . . . . . . . . . . . 2 . . . Ally Attacks 676 | . . . . . 43 77 10 4 261 124 97 . . . . 44 . 14 2 Total Damage 16707 | . . . . . 1121 2356 297 133 5954 2915 2130 . . . . 1277 . 431 93 Kills 123 | . . . . . 10 24 1 1 42 20 19 . . . . 2 . 4 . Allies Corrupted 2 | . . . . . . 1 . . . . . . . . . . . . 1 Allies Melted . | . . . . . . . . . . . . . . . . . . . . Intel | -11 -10 -10 -9 -8 -7 -7 -7 -7 -5 -5 -5 -5 -5 -5 -4 -4 -3 -3 -2 ------- Run | Yrd Mat Min Mat Mat Fac Sto Rec Scr Fac Gar Fac Upp Upp Zhi Pro Fac Res Qua Res Active Infowar (turns) 4957 | . . . 387 . 677 185 . . 343 158 22 140 139 15 536 901 522 449 483 Optics 391 | . . . . . . . . . . . . . . . 12 379 . . . Sensors 4939 | . . . 387 . 661 185 . . 343 158 22 140 139 15 536 899 522 449 483 Terrain 16 | . . . . . 16 . . . . . . . . . . . . . . Robot Analysis Total 19 | . 3 . . . . 2 . 5 . . 1 . . 4 . 3 . 1 . Derelict Logs Recovered 4 | . . 1 . . . . . . . . . 1 1 . 1 . . . . Drone Launches 26 | . . . 4 20 . . . . . . . . . . . 2 . . . Drone Recoveries 24 | . . . 3 19 . . . . . . . . . . . 2 . . . Exploration | -11 -10 -10 -9 -8 -7 -7 -7 -7 -5 -5 -5 -5 -5 -5 -4 -4 -3 -3 -2 ------------- Run | Yrd Mat Min Mat Mat Fac Sto Rec Scr Fac Gar Fac Upp Upp Zhi Pro Fac Res Qua Res Turns Passed 13398 | 92 848 587 1592 2528 1038 440 598 454 917 341 519 140 139 61 539 901 538 598 528 Spaces Moved 17508 | 72 736 608 986 1407 1716 778 661 1485 1121 726 1363 328 347 170 625 1983 919 965 512 Core 91 | 6 . . . . 9 . . . . . . . . . . . . . 76 Treads . | . . . . . . . . . . . . . . . . . . . . Legs 222 | 66 156 . . . . . . . . . . . . . . . . . . Wheels 3581 | . 580 608 986 1407 . . . . . . . . . . . . . . . Hover 647 | . . . . . . . . . . . . . . . . . . 211 436 Flight 12967 | . . . . . 1707 778 661 1485 1121 726 1363 328 347 170 625 1983 919 754 . Fastest Speed 23 | 50 90 90 90 90 26 26 26 26 26 29 23 29 29 29 29 31 29 31 50 Average Speed 46 | 114 96 90 104 110 27 26 26 26 27 29 26 32 33 29 30 31 29 38 54 Slowest Speed 200 | 120 120 90 105 120 200 27 26 26 34 29 40 34 34 29 34 35 34 80 120 Overloaded Moves . | . . . . . . . . . . . . . . . . . . . . Propulsion Burnouts . | . . . . . . . . . . . . . . . . . . . . Robots Hopped 48 | . . . . . 3 1 1 . . . 8 . . . 5 18 6 6 . Potential Cave-ins 2 | . . . 2 . . . . . . . . . . . . . . . . Cave-ins Triggered . | . . . . . . . . . . . . . . . . . . . . Exploration Rate (%) 58 | 4 92 98 57 80 43 94 98 88 24 64 26 50 57 61 75 37 28 83 19 Regions Visited 19 Branch Regions 9 Pre-discovered Areas 15 | . . 2 3 . 3 . . 2 . . . . . 3 . 2 . . . Known Exits Taken 14 | . . . 1 . 1 1 1 1 1 . 1 1 1 1 1 1 1 1 . Unknown Exits Taken 4 | 1 1 1 . 1 . . . . . . . . . . . . . . . Scrap Searched 13 | . . 1 . . . . . 9 . . . 1 . . 2 . . . . Spaces Dug 108 | . 2 . 23 3 17 3 . . 6 1 16 . . . . 12 13 11 1 Terrain Destroyed 504 | . 60 31 74 66 65 18 2 . 13 122 16 . . . . 12 13 11 1 Melee 91 | . 2 . 6 3 17 3 . . 6 1 16 . . . . 12 13 11 1 Projectile . | . . . . . . . . . . . . . . . . . . . . AOE 413 | . 58 31 68 63 48 15 2 . 7 121 . . . . . . . . . Terrain Rammed . | . . . . . . . . . . . . . . . . . . . . Walls Destroyed . | . . . . . . . . . . . . . . . . . . . . Machines Disabled . | . . . . . . . . . . . . . . . . . . . . Actions | -11 -10 -10 -9 -8 -7 -7 -7 -7 -5 -5 -5 -5 -5 -5 -4 -4 -3 -3 -2 --------- Run | Yrd Mat Min Mat Mat Fac Sto Rec Scr Fac Gar Fac Upp Upp Zhi Pro Fac Res Qua Res Total 22046 | 79 810 636 1454 2185 2200 972 1076 1541 1690 837 1473 360 359 181 961 2197 1143 1151 741 Wait 3613 | . 2 . 369 555 403 164 397 44 519 63 71 24 2 . 329 162 192 136 181 Move 17401 | 71 735 607 985 1406 1709 775 658 1484 1120 725 1349 327 346 169 616 1949 907 952 511 Hop 37 | . . . . . 3 1 1 . . . 5 . . . 3 13 5 6 . Pick Up 75 | 2 6 4 5 9 10 1 4 1 3 6 . 4 . 2 1 10 3 2 2 Fast Attach 118 | 6 4 2 6 17 13 3 . 2 9 2 6 2 1 4 2 12 2 16 9 Attach 53 | . 1 2 6 5 7 1 2 1 4 4 5 1 . 1 1 5 2 1 4 Detach 18 | . 1 1 2 3 . . 1 . 1 1 1 . . 2 . 2 . 1 2 Swap 21 | . 4 1 2 2 3 . 1 . 3 1 1 . 1 . 2 . . . . Drop 92 | . 4 6 1 16 10 1 3 2 3 6 1 2 . 3 1 11 3 13 6 Fire 297 | . 40 13 45 149 11 2 . . 8 8 10 . 5 . 4 . . . 2 Melee 279 | . 13 . 33 22 31 23 7 7 17 9 24 . 4 . 2 25 29 24 9 Ram 15 | . . . . 1 . . . . . . . . . . . . . . 14 Kick . | . . . . . . . . . . . . . . . . . . . . Crush . | . . . . . . . . . . . . . . . . . . . . Escape Stasis 19 | . . . . . . . . . . 10 . . . . . 8 . . 1 Rewire 8 | . . . . . . 1 2 . 3 2 . . . . . . . . . Trap . | . . . . . . . . . . . . . . . . . . . . Miscellaneous . | . . . . . . . . . . . . . . . . . . . . Route ------- -11/Scrapyard -10/Materials (discovered 5 exits: *Mat x3 / *Min / [*Sub]) -10/Mines (discovered 4 exits: *Mat x2 / [*Exi] / [*Sub]) -9/Materials (discovered 5 exits: *Mat x3 / Min x2) -8/Materials (discovered 2 exits: *Fac x2) -7/Factory (discovered 3 exits: *Fac x2 / *Sto) -7/Storage (discovered 2 exits: *Fac / *Rec) -7/Recycling (discovered 2 exits: *Fac / *Scr) -7/Scraptown (discovered 2 exits: *Fac x2) -5/Factory (discovered 3 exits: Upp x2 / Gar) -5/Garrison (discovered 3 exits: *Fac x3) -5/Factory (discovered 2 exits: *Upp x2) -5/Upper Caves -5/Upper Caves (discovered 2 exits: *Fac / *Zhi) -5/Zhirov -4/Proximity Caves -4/Factory (discovered 5 exits: *Res x2 / *Upp x2 / Arm) -3/Research -3/Quarantine -2/Research (discovered 2 exits: [*Acc] / Tes) History --------- Turn | Location | Event 3 | -11/Scrapyard | Discovered new exit (range 15) 93 | -11/Scrapyard | Entered Materials 263 | -10/Materials | Discovered new exit (range 8) 318 | -10/Materials | Build established: Mutant 426 | -10/Materials | Discovered new exit (range 8) 521 | -10/Materials | Discovered new exit (range 10) 592 | -10/Materials | Discovered new exit (range 15) 728 | -10/Materials | Discovered new exit (range 12) 941 | -10/Materials | Entered Mines 941 | -10/Mines | Accompanied by 1 ally 961 | -10/Mines | Met a Derelict who couldn't figure out how to use a Trap Extractor 1081 | -10/Mines | Found the Drone Emporium 1086 | -10/Mines | Found Prototype Device 1086 | -10/Mines | Identified Sensor Drone Bay 1128 | -10/Mines | Discovered new exit (range 13) 1231 | -10/Mines | Deemed a non-threat by the Exiles lab entrance 1231 | -10/Mines | Discovered new exit (range 5) 1313 | -10/Mines | Discovered new exit (range 16) 1440 | -10/Mines | Discovered new exit (range 9) 1461 | -10/Mines | Learned location of Storage (-7) 1528 | -10/Mines | Entered Materials 1528 | -9/Materials | Accompanied by 1 ally 1528 | -9/Materials | Evolved 2 slots: Utility x2 1864 | -9/Materials | Identified exit to Mines 2224 | -9/Materials | Repaired Arm. Wheel 2301 | -9/Materials | Discovered new exit (range 16) 2469 | -9/Materials | Learned 2 Storage zone layouts 2569 | -9/Materials | Learned location of Zion (-6) 2607 | -9/Materials | Learned Storage security intel 2644 | -9/Materials | Identified exit to Materials 2813 | -9/Materials | Discovered exit to Materials (range 14) 3023 | -9/Materials | Repaired Arm. Wheel 3120 | -9/Materials | Entered another Materials area 3120 | -8/Materials | Accompanied by 3 allies 3120 | -8/Materials | Evolved 2 slots: Propulsion x1, Utility x1 3914 | -8/Materials | System corruption reached 10% 3941 | -8/Materials | Lost 3 allies 4155 | -8/Materials | Discovered new exit (range 16) 4570 | -8/Materials | Discovered new exit (range 11) 4979 | -8/Materials | Garrison activated, responded to threat 5484 | -8/Materials | Repaired Arm. Wheel 5648 | -8/Materials | Entered Factory 5648 | -7/Factory | Evolved 2 slots: Propulsion x1, Utility x1 5649 | -7/Factory | Identified exit to Storage 5673 | -7/Factory | Lost 3 parts (1p2u) 5761 | -7/Factory | Lost 4 parts (2n1u1w) 5956 | -7/Factory | Build established: Hacker-Sprinter 5973 | -7/Factory | Fabricated Spear? 6179 | -7/Factory | Discovered new exit (range 14) 6182 | -7/Factory | Identified exit to Factory 6243 | -7/Factory | Learned location of Cetus (-6) 6282 | -7/Factory | Learned location of 1 exit from Cetus 6304 | -7/Factory | Fabricated P-60 Hacker (x2) 6309 | -7/Factory | Learned location of 2 exits from Lower Caves 6331 | -7/Factory | Learned Extension trap positions 6352 | -7/Factory | Build established: Sprinter 6354 | -7/Factory | Learned location of Lower Caves (-6) 6372 | -7/Factory | Fabricated P-60 Hacker (x2) 6380 | -7/Factory | Learned location of 2 exits from Archives 6485 | -7/Factory | Fabricated P-60 Hacker (x2) 6664 | -7/Factory | Fabricated P-60 Hacker (x2) 6686 | -7/Factory | Build established: Commander-Sprinter 6686 | -7/Factory | Entered Storage 6686 | -7/Storage | Accompanied by 9 allies 6687 | -7/Storage | Identified exit to Recycling 6742 | -7/Storage | Hacker 4d assimilated hostile S-27 Virus 6759 | -7/Storage | Garrison activated, responded to threat 6801 | -7/Storage | Discovered exit to Factory (range 16) 7010 | -7/Storage | Hacking Suite fried by hacking feedback 7049 | -7/Storage | Used back door to open Recycling access 7126 | -7/Storage | Entered Recycling 7126 | -7/Recycling | Accompanied by 10 allies 7202 | -7/Recycling | Lost 3 allies 7298 | -7/Recycling | Hacker 4a assimilated hostile Y-54 Guardian 7316 | -7/Recycling | Discovered new exit (range 15) 7563 | -7/Recycling | Scanned before Scraplab entrance 7657 | -7/Recycling | Entered Scraplab 7676 | -7/Recycling | Discovered new exit (range 3) 7676 | -7/Recycling | Identified exit to Scraptown 7724 | -7/Recycling | Entered Scraptown 7724 | -7/Scraptown | Accompanied by 7 allies 7724 | -7/Scraptown | System corruption cleaned by C-Scrubber 7758 | -7/Scraptown | Visited Symbiants 7768 | -7/Scraptown | Visited TADAMA 7778 | -7/Scraptown | Discovered new exit (range 11) 7778 | -7/Scraptown | Heard Great Nut preacher, LISTEN AND RECITE! 7849 | -7/Scraptown | Visited Red Mages 7886 | -7/Scraptown | Visited Bundlers 7899 | -7/Scraptown | Visited Cyclists 7909 | -7/Scraptown | Visited UFD Registry 7909 | -7/Scraptown | Registered with UFD as "Shadowback" 7920 | -7/Scraptown | Entered Cyclist Reading Room 7940 | -7/Scraptown | Visited Curators Association 7950 | -7/Scraptown | Visited Observation Area 7967 | -7/Scraptown | Visited Junk Repository 7975 | -7/Scraptown | Visited Supply Room 8012 | -7/Scraptown | Visited Science Guys 8016 | -7/Scraptown | Visited DA-N13 Charitable Foundation 8019 | -7/Scraptown | Found DCF Scrap (29 items) 8027 | -7/Scraptown | Visited Analyses Database 8035 | -7/Scraptown | Visited Research Penetration Think Tank 8042 | -7/Scraptown | Visited Botcube Research 8063 | -7/Scraptown | Met Optimus 8063 | -7/Scraptown | Accepted into 0bPrime 8083 | -7/Scraptown | Botcube activated 8095 | -7/Scraptown | Civil war broke out across Scraptown 8109 | -7/Scraptown | Discovered new exit (range 5) 8110 | -7/Scraptown | Identified exit to Factory 8153 | -7/Scraptown | Lost 4 allies 8178 | -7/Scraptown | Entered Factory 8178 | -5/Factory | Accompanied by 7 allies 8178 | -5/Factory | Evolved 4 slots: Power x1, Propulsion x1, Utility x2 8203 | -5/Factory | Loaded intel: 8 recycling unit locations 8232 | -5/Factory | Scrapoid reinforcements arrived 8291 | -5/Factory | Scrapoid reinforcements arrived 8341 | -5/Factory | Lost 4 allies 8362 | -5/Factory | Identified exit to Upper Caves 8505 | -5/Factory | Scrapoids reinforcements arrived? 8521 | -5/Factory | Garrison activated, responded to threat 8549 | -5/Factory | Garrison activated, responded to threat 8652 | -5/Factory | Fabricated P-60 Hacker (x2) 8790 | -5/Factory | Fabricated P-60 Hacker (x2) 8791 | -5/Factory | System corruption reached 10% 8925 | -5/Factory | Fabricated P-60 Hacker (x2) 9037 | -5/Factory | Identified exit to Garrison 9078 | -5/Factory | First assault squad dispatched 9095 | -5/Factory | Entered Garrison 9095 | -5/Garrison | Accompanied by 16 allies 9115 | -5/Garrison | Triggered checkpoint 9129 | -5/Garrison | Rescued a captive Derelict 9129 | -5/Garrison | Rescued a captive Derelict 9191 | -5/Garrison | Triggered checkpoint 9191 | -5/Garrison | Spotted B-75 Beast 9201 | -5/Garrison | Triggered checkpoint 9201 | -5/Garrison | Triggered checkpoint 9218 | -5/Garrison | Phase Generator disabled 9221 | -5/Garrison | Installed Relay Interface Framework 9228 | -5/Garrison | Discovered new exit (range 12) 9234 | -5/Garrison | Lost 6 allies 9250 | -5/Garrison | Garrison Relay disabled 9307 | -5/Garrison | Garrison Relay disabled 9342 | -5/Garrison | Found embedded Infiltrators 9381 | -5/Garrison | Discovered new exit (range 73) 9381 | -5/Garrison | Discovered new exit (range 10) 9381 | -5/Garrison | Discovered new exit (range 62) 9383 | -5/Garrison | Triggered checkpoint 9412 | -5/Garrison | Lost 4 allies 9435 | -5/Garrison | Identified exit to Factory 9436 | -5/Garrison | Entered Factory 9504 | -5/Factory | Build established: Hacker-Sprinter 9566 | -5/Factory | Fabricated P-60 Hacker? 9726 | -5/Factory | Scrapoids reinforcements arrived? 9787 | -5/Factory | Lost 3 allies 9876 | -5/Factory | Central database locked down 9918 | -5/Factory | Lost 3 parts (1n1u1w) 9955 | -5/Factory | Entered Upper Caves 9980 | -5/Upper Caves | Found DCF Scrap (16 items) 10001 | -5/Upper Caves | Identified exit to Upper Caves 10095 | -5/Upper Caves | Entered another Upper Caves area 10112 | -5/Upper Caves | Discovered new exit (range 11) 10171 | -5/Upper Caves | Encountered a Warlord checkpoint 10201 | -5/Upper Caves | Discovered new exit (range 10) 10207 | -5/Upper Caves | Learned Factory emergency access door positions 10234 | -5/Upper Caves | Identified exit to Zhirov 10234 | -5/Upper Caves | Entered Zhirov 10235 | -5/Zhirov | Discovered new exit (range 3) 10240 | -5/Zhirov | Met Zhirov 10250 | -5/Zhirov | Found Alien Artifact 10250 | -5/Zhirov | Identified Integrated Reactor 10250 | -5/Zhirov | Installed Integrated Reactor, increased core energy generation (+10) 10274 | -5/Zhirov | Found Alien Artifact 10284 | -5/Zhirov | Learned location of Quarantine (-3) 10284 | -5/Zhirov | Learned location of Testing (-2) 10284 | -5/Zhirov | Learned location of Command (-1) 10287 | -5/Zhirov | Zhirov requested help retrieving the SGEMP Prototype 10295 | -5/Zhirov | Identified exit to Proximity Caves 10295 | -5/Zhirov | Entered Proximity Caves 10297 | -4/Proximity Caves | Spotter reported a threat 10298 | -4/Proximity Caves | Spotter reported a threat 10772 | -4/Proximity Caves | Attracted the attention of an 0b10 outpost 10828 | -4/Proximity Caves | Discovered new exit (range 11) 10833 | -4/Proximity Caves | Attracted the attention of an 0b10 checkpoint 10834 | -4/Proximity Caves | Identified exit to Factory 10834 | -4/Proximity Caves | Entered Factory 10834 | -4/Factory | Evolved 2 slots: Utility x2 10835 | -4/Factory | Lost 7 parts (1n4u2w) 10850 | -4/Factory | Discovered new exit (range 28) 10867 | -4/Factory | Identified exit to Research 10890 | -4/Factory | Identified exit to Upper Caves 10890 | -4/Factory | Identified exit to Armory 10961 | -4/Factory | Scrapoid reinforcements arrived 11091 | -4/Factory | Spotted B-86 Titan 11104 | -4/Factory | Discovered exit to Research (range 16) 11119 | -4/Factory | Destroyed B-86 Titan 11124 | -4/Factory | Loaded intel: 7 recycling unit locations 11124 | -4/Factory | Learned location of Protoforge (-2) 11128 | -4/Factory | Build established: Hacker-Scout 11204 | -4/Factory | Fabricated Nanoactuators? 11464 | -4/Factory | Learned location of Armory (-4) 11507 | -4/Factory | Learned location of 1 exit from Armory 11527 | -4/Factory | Build established: Hacker-Sprinter 11539 | -4/Factory | Learned Research non-interactive machine intel 11562 | -4/Factory | Learned Quarantine stockpile data 11575 | -4/Factory | Loaded intel: 26 terminal locations 11578 | -4/Factory | Learned Research trap positions 11615 | -4/Factory | Learned 2 Armory zone layouts 11648 | -4/Factory | Loaded intel: 222 non-interactive machine locations 11735 | -4/Factory | Entered Research 11735 | -3/Research | Evolved 2 slots: Propulsion x1, Utility x1 11736 | -3/Research | Loaded intel: 86 trap records 11737 | -3/Research | Loaded intel: 55 non-interactive machine locations 12110 | -3/Research | Spotted B-86 Titan 12267 | -3/Research | Spotted B-90 Cyclops 12268 | -3/Research | Discovered new exit (range 16) 12273 | -3/Research | Identified exit to Quarantine 12273 | -3/Research | Entered Quarantine 12296 | -3/Quarantine | Found Alien Artifact 12301 | -3/Quarantine | Lost 6 parts (1p2n3u) 12314 | -3/Quarantine | Found Gamma Bomb Array 12517 | -3/Quarantine | Discovered new exit (range 12) 12549 | -3/Quarantine | Found Alien Artifact 12549 | -3/Quarantine | Identified Terrabomb 12549 | -3/Quarantine | Used Terrabomb 12572 | -3/Quarantine | Build established: Wizard-Sprinter 12686 | -3/Quarantine | Loaded intel: 16 terminal locations 12749 | -3/Quarantine | Learned Section 7 emergency access door positions 12803 | -3/Quarantine | Learned 4 Testing zone layouts 12849 | -3/Quarantine | Learned Section 7 emergency access door positions 12870 | -3/Quarantine | Identified exit to Research 12871 | -3/Quarantine | Entered Research 12871 | -2/Research | Evolved 2 slots: Utility x2 12872 | -2/Research | Identified exit to Testing 12877 | -2/Research | Lost 14 parts (2p9n3u) 12959 | -2/Research | Build established: Wizard-Mutant 13297 | -2/Research | Spotted B-90 Cyclops 13317 | -2/Research | Discovered new exit (range 11) 13370 | -2/Research | Core integrity fell below 50% 13385 | -2/Research | System corruption reached 10% 13389 | -2/Research | Core integrity fell below 20% 13399 | -2/Research | Destroyed by S-43 Plague with Heavy Machine Gun Last Messages --------------- 13388_ Slug penetrates Wall. 13389_ Slammed into H-88 Terminator. 13390_ Slug penetrates Wall. 13390_ Penetrated by Slug. 13390_ Slammed into H-88 Terminator. 13391_ Penetrated by Slug. 13392_ Connecting with Terminal... >>Layout(Zone) Retrieving Zone 2K layout... Downloaded map data. >>Traps(Locate) Found 6 traps in 1 array: 6x Stasis Trap Map updated. 13394_ Slammed into R-10 Processor. 13397_ Penetrated by Slug. 13397_ K-01 Serf destroyed. 13399_ Slug penetrates Wall. 13399_ Penetrated by Slug. 13399_ Slammed into H-88 Terminator. Map ----- +----------------------------------------------------+ | ?# #?????????????????????????????????? | | ??######### #?????????????????????????????????? | | ??????????# #?????????????????????????????????? | | ???######?# +?????????????????????????????????? | | ???# # ####?????????????????????????????????? | | ???# # #????????????????????????????????????? | | ???# + #????????????????????????????????????? | | ???# # #????????????????????????????????????? | | ???# ] # #??# ## ##????????????????????? | | ???# # #??######### ##????????????????????? | | ???######## #?????????# #????????????????????? | | ########### ########### T #????????????????????? | | "" +????????????????????? | | ###########/########### #????????????????????? | | ????????# ######## #????????????????????? | | ????????# ## #### ###????????????????????? | | ????????# ## #??#s#??????????????????????? | | ????????#= ## #??# #??????????????????????? | | ????????# = ! ## #??# #??????????????????????? | | ????????# * ## #??# #??????????????????????? | | ????????#####/### #### #??????????????????????? | | ??????????### ### + #??????????????????????? | | ###???????# # # h =#??????????????????????? | | ######### T ######s =%########???????????????? | | + "" % s ! ????????? | | ######### #########@#########??????????????? | | #???????# #???????#h#??????????????????????? | | ###############???????# #??????????????????????? | | # #????????# #??????????????????????? | | ### ##########R###????????????????????? | | + """"" + ^w ????????????????????? | | # """"" # ^ ????????????????????? | | # """"" # ^ ????????????????????? | | # + ^^ ????????????????????? | | # ####### ######????????????????????? | | + " " #????## ##????????????????????????? | | # "Y" #????# #####????????????????????? | | # """ #????# > ????????????????????? | | # #????# #####????????????????????? | | ?????????????????????????????????????????????????? | | ?????????????????????????????????????????????????? | | ?????????????????????????????????????????????????? | | ?????????????????????????????????????????????????? | | ?????????????????????????????????????????????????? | | ?????????????????????????????????????????????????? | | ?????????????????????????????????????????????????? | | ?????????????????????????????????????????????????? | | ?????????????????????????????????????????????????? | | ?????????????????????????????????????????????????? | | ?????????????????????????????????????????????????? | +----------------------------------------------------+ Best States ------------- Heat Dissipation 49 Energy Generation 39 Energy Capacity 350 Matter Stores 300 Matter Capacity 300 Sight Range 22 Robot Scan Range 16 Terrain Scan Range 16 Terrain Scan Density 10 Armor Coverage 600 Resistance: TH 10 Propulsion Shielding 90 Melee Speed Boost 30 Evasion (%) 76 Offensive Hacking 33 Defensive Hacking 48 Relay Coupler Types 2 Relay Coupler Value 41 Authchip Count 4 Item Schematics ----------------- Spear | -7/Factory | Hacked Xenon Bombardment Thruster | -7/Recycling | Hacked Adv. System Shield | -5/Factory | Scanalyzed CPS Tube | -5/Factory | Scanalyzed Assault Drone Bay | -5/Zhirov | Free Exp. Heat Sink | -5/Zhirov | Free Exp. Optical Array | -5/Zhirov | Free Imp. Arc Thrower | -5/Zhirov | Free Nanoactuators | -4/Factory | Hacked Impulse Thruster | -4/Factory | Scanalyzed Force Lance | -3/Research | Scanalyzed Robot Schematics ------------------ P-60 Hacker | -7/Factory | Hacked Fabricated ------------ Spear | x2 | -7/Factory P-60 Hacker | x2 | -7/Factory | Authchip P-60 Hacker | x2 | -7/Factory P-60 Hacker | x2 | -7/Factory P-60 Hacker | x2 | -7/Factory P-60 Hacker | x2 | -5/Factory | Authchip P-60 Hacker | x2 | -5/Factory | Authchip P-60 Hacker | x2 | -5/Factory | Authchip P-60 Hacker | x2 | -5/Factory Nanoactuators | x2 | -4/Factory Repaired ---------- Arm. Wheel | 37% | -9/Materials Arm. Wheel | 19% | -9/Materials Arm. Wheel | 14% | -8/Materials Alien Tech Used ----------------- Integrated Reactor Terrabomb Achievements -------------- None Challenges ------------ None Game ------ Seed DeflectorAdvancedArmor Manual? 0 Play Time 03:24:44 Cumulative 232.0 hours Start 2025.05.09 @ 15:42:57 End 2025.05.09 @ 19:17:26 Sessions 1 Manual Loads 0 Difficulty Rogue Special Mode None Game No. 229 Rogue 168 Adventurer 61 Explorer 0 Win Type - Total 10 Types 8/0/2/0/0/0/0/0/0/0 Lore% 51 Gallery% 62 Achievement% 61 Wizard Run 0 Options --------- Layout 1 ASCII 0 Keyboard 0 Movement Mouse Keybinds 0 Fullscreen 2 Font 32/SmallcapsGlow Map View 50x35 Zoom Use 0% Tactical HUD 1 Map Filters NONE Filters NONE Steam 1 RUN: e2c2569b-39b9-4034-b239-b9f31c51aa97